bitfinex-derivatives/quotes_SOLF0:USTF0_20241016
["timestamp","ask_amount","ask_price","bid_price","bid_amount"]
[1729093540811,5.22,155.71,155.61,19.26]
[1729093540990,3.2122,155.68,155.62,1.3575]
[1729093541189,3.2122,155.68,155.65,3.2127]
[1729093541491,19.26,155.66,155.6,1.4479]
[1729093541685,19.26,155.66,155.59,5.22]
[1729093541893,19.26,155.66,155.6,3.2137]
[1729093542490,3.2129,155.65,155.6,3.2137]
[1729093542685,19.26,155.66,155.6,3.2137]
[1729093543697,19.26,155.66,155.61,3.2135]
[1729093544085,3.2131,155.64,155.61,3.2135]
[1729093544792,3.2128,155.65,155.62,3.2133]
[1729093545486,3.2126,155.66,155.63,3.2131]
[1729093545688,5.22,155.69,155.64,3.25300825]
[1729093545884,5.22,155.69,155.6,19.26]
[1729093546190,3.2128,155.65,155.62,3.2133]
[1729093547590,3.2128,155.65,155.63,3.17398737]
[1729093547794,3.2128,155.65,155.62,3.2133]
[1729093548896,3.2128,155.65,155.63,3.24499164]
[1729093549190,6.4214,155.76,155.58,5.22]
[1729093549191,3.2122,155.68,155.58,5.22]
[1729093549387,19.26,155.68,155.59,19.26]
[1729093549790,19.26,155.68,155.61,3.2134]
[1729093550394,3.2129,155.65,155.62,3.2134]
[1729093550594,19.26,155.66,155.57,2.8647]
[1729093550792,19.26,155.64,155.57,8.0847]
[1729093550995,5.22,155.66,155.57,8.0847]
[1729093551287,19.26,155.65,155.57,8.0847]
[1729093551487,3.2134,155.63,155.59,3.2139]
[1729093551697,19.26,155.65,155.59,3.2139]
[1729093552219,3.2136,155.61,155.59,3.2139]
[1729093553900,5.22,155.66,155.57,8.0847]
[1729093555303,3.2133,155.63,155.6,3.2136]
[1729093555798,19.26,155.67,155.58,19.26]
[1729093556501,3.2131,155.64,155.61,3.2135]
[1729093556797,19.26,155.67,155.58,19.26]
[1729093557095,3.2129,155.65,155.62,3.2133]
[1729093557303,3.2129,155.65,155.63,3.19122058]
[1729093560503,3.2129,155.65,155.61,3.2136]
[1729093561105,3.2121,155.69,155.65,3.2126]
[1729093561307,24.48,155.73,155.65,3.25045351]
[1729093561499,24.48,155.73,155.63,1.3426]
[1729093561799,3.2121,155.69,155.65,3.2127]
[1729093562000,3.2121,155.69,155.65,15.5427]
[1729093562604,3.2121,155.69,155.65,18.82560343]
[1729093563804,3.2121,155.69,155.65,6.49560343]
[1729093564300,3.2121,155.69,155.65,11.71560343]
[1729093565006,3.2121,155.69,155.65,8.50290343]
[1729093565202,19.27,155.72,155.66,3.2125]
[1729093565509,3.2122,155.68,155.65,8.50290343]
[1729093565697,19.27,155.72,155.65,8.50290343]
[1729093565901,3.2123,155.68,155.65,8.50290343]
[1729093566099,19.27,155.72,155.65,11.71560343]
[1729093566298,19.27,155.7,155.65,8.50290343]
[1729093566602,3.2122,155.68,155.65,3.28290343]
[1729093566816,19.27,155.7,155.63,1.3426]
[1729093567199,3.2124,155.67,155.63,4.54669784]
[1729093567406,19.27,155.7,155.63,1.3426]
[1729093568109,19.27,155.68,155.63,4.48212759]
[1729093568305,19.27,155.68,155.63,1.3426]
[1729093568708,3.213,155.64,155.63,3.24939338]
[1729093569006,3.213,155.64,155.63,3.25581828]
[1729093569212,3.213,155.64,155.61,9.7428]
[1729093569705,3.2132,155.63,155.6,3.2137]
[1729093569911,19.27,155.64,155.59,1.3069]
[1729093570705,3.2137,155.61,155.59,1.3069]
[1729093571406,19.27,155.64,155.59,1.3069]
[1729093571708,3.2135,155.62,155.59,1.3069]
[1729093572810,3.2135,155.62,155.58,3.2142]
[1729093573008,5.22,155.65,155.56,9.4342]
[1729093573009,19.27,155.6,155.56,1.4356]
[1729093573205,19.27,155.6,155.55,3.18628148]
[1729093573402,6.4253,155.66,155.52,1.4356]
[1729093573403,19.27,155.58,155.52,1.4356]
[1729093573603,3.215,155.55,155.52,1.4356]
[1729093574003,19.27,155.58,155.52,1.4356]
[1729093574618,19.27,155.56,155.51,3.14058144]
[1729093574816,3.2155,155.53,155.51,3.14058144]
[1729093575210,19.27,155.54,155.47,1.3716]
[1729093575413,3.216,155.5,155.48,3.1621187]
[1729093575819,19.27,155.52,155.47,1.3716]
[1729093576110,19.27,155.5,155.35,82.21206821]
[1729093576306,5.22,155.52,155.42,5.22]
[1729093576511,3.2161,155.49,155.45,3.2169]
[1729093576922,19.27,155.51,155.43,2.8234]
[1729093577210,19.27,155.51,155.43,6.0683061]
[1729093577410,3.217,155.45,155.43,1.3716]
[1729093577611,3.217,155.45,155.41,3.2177]
[1729093581508,3.217,155.45,155.39,3.218]
[1729093581713,19.27,155.47,155.39,3.218]
[1729093582620,3.2174,155.43,155.39,3.218]
[1729093583116,19.27,155.44,155.38,1.3764]
[1729093583323,24.49,155.44,155.38,1.3764]
[1729093584118,5.22,155.44,155.38,1.3764]
[1729093584317,8.4373,155.44,155.4,3.2178]
[1729093585011,24.49,155.44,155.35,3.15536821]
[1729093585322,24.49,155.44,155.34,5.22]
[1729093585525,19.27,155.42,155.34,8.49865248]
[1729093585926,3.218,155.4,155.34,8.49865248]
[1729093586122,3.218,155.4,155.36,3.2187]
[1729093586323,19.27,155.43,155.34,8.49865248]
[1729093587117,5.22,155.44,155.34,27.76865248]
[1729093587523,5.22,155.44,155.37,19.27]
[1729093587717,5.22,155.44,155.38,1.4421]
[1729093588326,3.2175,155.43,155.39,3.218]
[1729093588729,5.22,155.44,155.38,1.4421]
[1729093588927,3.2177,155.42,155.38,1.4421]
[1729093589937,3.2175,155.43,155.39,3.2181]
[1729093590150,24.49,155.44,155.38,1.4421]
[1729093590634,3.2177,155.42,155.39,3.2181]
[1729093591434,3.2177,155.41,155.38,3.2182]
[1729093591634,19.27,155.42,155.34,8.49865248]
[1729093591829,19.27,155.42,155.34,5.22]
[1729093592030,19.27,155.42,155.36,3.2187]
[1729093592236,19.27,155.42,155.36,6.50860424]
[1729093593125,3.2181,155.4,155.36,3.28990424]
[1729093593335,19.27,155.4,155.34,3.219]
[1729093593531,19.27,155.4,155.34,6.40195549]
[1729093593735,3.2185,155.38,155.34,6.40195549]
[1729093593961,3.2185,155.38,155.35,3.2188]
[1729093594236,3.2189,155.36,155.31,1.4462]
[1729093594434,5.22,155.4,155.33,3.2193]
[1729093594743,5.22,155.4,155.33,6.39453222]
[1729093594744,3.2189,155.36,155.33,6.39453222]
[1729093595042,3.2189,155.36,155.33,3.17523222]
[1729093595232,3.2189,155.36,155.32,3.2195]
[1729093595428,3.2192,155.35,155.33,3.18005927]
[1729093595631,3.2192,155.35,155.31,4.666]
[1729093596037,3.2192,155.35,155.31,7.83903518]
[1729093596335,3.2186,155.37,155.33,3.2193]
[1729093597435,19.27,155.34,155.31,3.17303518]
[1729093597636,19.27,155.34,155.25,5.22]
[1729093598050,3.2199,155.31,155.27,3.2205]
[1729093598233,19.27,155.32,155.27,3.2205]
[1729093598741,3.2199,155.31,155.27,3.2205]
[1729093599238,3.2202,155.29,155.24,5.22]
[1729093599536,19.27,155.32,155.24,5.22]
[1729093599732,19.27,155.34,155.24,5.22]
[1729093600335,19.27,155.34,155.25,19.27]
[1729093600538,22.4893,155.34,155.25,19.27]
[1729093601240,19.27,155.34,155.25,19.27]
[1729093601437,3.2195,155.33,155.29,3.2201]
[1729093601637,3.2195,155.33,155.29,6.43560405]
[1729093604148,3.22,155.3,155.27,3.2206]
[1729093604345,3.22,155.3,155.28,3.14800985]
[1729093604646,3.2201,155.3,155.26,3.2207]
[1729093605148,19.27,155.32,155.24,5.22]
[1729093605735,3.2201,155.3,155.26,3.2208]
[1729093606141,19.27,155.32,155.24,5.22]
[1729093606336,3.2197,155.32,155.27,3.2206]
[1729093606548,24.49,155.34,155.24,5.22]
[1729093607151,24.49,155.34,155.29,3.2201]
[1729093607449,24.49,155.34,155.3,3.18608805]
[1729093607750,3.2195,155.33,155.3,3.18608805]
[1729093608250,19.27,155.32,155.26,3.2208]
[1729093608447,19.27,155.32,155.21,69.48]
[1729093608448,19.27,155.27,155.15,5.22]
[1729093608649,19.27,155.27,155.18,1.3327]
[1729093609055,19.27,155.27,155.19,5.22]
[1729093609451,3.2211,155.25,155.21,3.2218]
[1729093609754,3.2211,155.25,155.19,5.22]
[1729093609949,3.2211,155.25,155.22,3.2217]
[1729093610247,3.2213,155.24,155.19,5.22]
[1729093610443,19.27,155.27,155.19,5.22]
[1729093610851,22.4907,155.27,155.19,5.22]
[1729093611051,19.27,155.27,155.23,3.2213]
[1729093611254,19.27,155.27,155.23,6.39283587]
[1729093611949,19.27,155.27,155.23,3.17153587]
[1729093612254,19.27,155.27,155.19,5.22]
[1729093612651,3.2209,155.26,155.22,3.2215]
[1729093613746,19.27,155.27,155.15,1.4453]
[1729093613953,19.27,155.26,155.16,6.40380355]
[1729093614155,19.27,155.26,155.17,2.56730355]
[1729093614453,3.2211,155.25,155.18,1.18380885]
[1729093614656,3.2211,155.25,155.17,4.54215131]
[1729093615146,19.27,155.26,155.08,227.92647176]
[1729093615353,19.27,155.22,155.14,3.28330948]
[1729093615552,19.27,155.25,155.15,20.679]
[1729093615856,19.27,155.26,155.16,9.18933755]
[1729093616058,19.27,155.26,155.16,8.0053]
[1729093616261,19.27,155.26,155.17,1.18387409]
[1729093616462,3.2212,155.25,155.17,1.18387409]
[1729093616951,3.2212,155.25,155.21,3.2217]
[1729093617262,3.2213,155.24,155.22,3.24465579]
[1729093618262,19.27,155.23,155.16,8.0053]
[1729093618459,19.27,155.23,155.16,1.4018]
[1729093618753,19.27,155.21,155.15,1.409]
[1729093619060,3.2225,155.18,155.15,4.632]
[1729093619247,19.27,155.21,155.15,1.409]
[1729093620352,19.27,155.21,155.16,3.2228]
[1729093620353,3.2223,155.2,155.16,3.2228]
[1729093620555,24.49,155.23,155.15,1.409]
[1729093621154,3.2219,155.21,155.17,3.2226]
[1729093621549,3.2219,155.21,155.15,1.409]
[1729093621965,24.49,155.23,155.15,1.409]
[1729093622149,3.2221,155.2,155.15,1.409]
[1729093622352,19.27,155.21,155.15,1.409]
[1729093622865,3.2224,155.19,155.16,3.2228]
[1729093623068,19.27,155.21,155.14,3.29877096]
[1729093623253,19.27,155.21,155.13,5.22]
[1729093623555,3.2226,155.18,155.15,3.2231]
[1729093623761,19.27,155.19,155.15,3.23195976]
[1729093623963,19.27,155.19,155.1,6.5511]
[1729093624165,19.27,155.17,155.11,1.18432356]
[1729093624466,19.27,155.17,155.11,6.44748263]
[1729093624668,19.27,155.17,155.11,3.2239]
[1729093624867,19.27,155.17,155.11,6.41139655]
[1729093625069,19.27,155.17,155.11,3.18749655]
[1729093625269,19.27,155.17,155.1,4.5552]
[1729093625470,19.27,155.17,155.1,7.70794837]
[1729093626077,3.2235,155.14,155.11,3.2239]
[1729093626559,3.2235,155.14,155.1,4.48384837]
[1729093626560,3.2239,155.12,155.1,3.15274837]
[1729093626761,19.27,155.12,155.06,5.22]
[1729093627061,27.7132,155.15,155.11,3.2238]
[1729093627261,24.49,155.15,155.11,3.2238]
[1729093627659,3.2231,155.16,155.07,23.95385301]
[1729093627859,24.49,155.17,155.09,19.27]
[1729093628265,3.2229,155.16,155.09,19.27]
[1729093628464,24.49,155.17,155.11,3.2239]
[1729093628665,24.49,155.17,155.07,1.4212]
[1729093628968,1.0354,155.21,155.08,19.27]
[1729093628969,5.22,155.18,155.08,19.27]
[1729093629169,5.22,155.18,155.11,3.224]
[1729093629375,3.2227,155.17,155.11,3.27177689]
[1729093629571,3.2227,155.17,155.1,5.22]
[1729093629874,3.2227,155.17,155.13,3.2234]
[1729093630371,27.7124,155.19,155.15,3.223]
[1729093630566,19.27,155.21,155.12,19.27]
[1729093630770,5.22,155.22,155.13,1.3493]
[1729093630973,3.2217,155.22,155.14,24.49]
[1729093631166,24.49,155.23,155.14,24.49]
[1729093632574,24.49,155.23,155.14,5.22]
[1729093633079,19.27,155.21,155.14,5.22]
[1729093633379,19.27,155.19,155.14,5.22]
[1729093634975,19.27,155.19,155.16,3.2228]
[1729093635771,3.2222,155.2,155.16,3.2228]
[1729093635975,19.27,155.21,155.14,5.22]
[1729093636175,22.492,155.21,155.18,3.2224]
[1729093636378,24.49,155.23,155.14,5.22]
[1729093636570,24.49,155.23,155.18,3.2225]
[1729093636571,27.7115,155.23,155.18,3.2225]
[1729093636771,27.7115,155.23,155.18,3.23859399]
[1729093636772,19.27,155.23,155.18,3.23859399]
[1729093636972,19.27,155.23,155.14,5.22]
[1729093637279,3.2218,155.22,155.17,3.2226]
[1729093640679,3.2219,155.21,155.17,3.2226]
[1729093641382,3.2224,155.19,155.15,3.223]
[1729093642180,22.4924,155.19,155.14,3.2232]
[1729093642381,22.4924,155.19,155.13,1.3493]
[1729093642382,19.27,155.19,155.13,1.3493]
[1729093642583,19.27,155.17,155.13,1.3493]
[1729093643086,19.27,155.19,155.13,1.3493]
[1729093643392,3.2232,155.15,155.13,1.3493]
[1729093645590,24.49,155.19,155.13,1.3493]
[1729093646783,19.27,155.17,155.11,6.6017]
[1729093646990,19.27,155.17,155.11,5.22]
[1729093647581,3.2234,155.14,155.11,8.4439]
[1729093647781,19.27,155.17,155.1,3.17797521]
[1729093647984,19.27,155.17,155.09,5.22]
[1729093648384,19.27,155.17,155.1,3.2241]
[1729093648888,3.2231,155.15,155.1,3.2241]
[1729093649089,19.27,155.17,155.09,8.42033289]
[1729093649292,5.22,155.2,155.1,19.27]
[1729093649489,3.2229,155.17,155.1,19.27]
[1729093649992,3.2229,155.17,155.12,19.27]
[1729093650379,3.2229,155.17,155.13,3.2234]
[1729093651395,3.2225,155.18,155.15,3.2231]
[1729093651589,24.49,155.21,155.15,3.2231]
[1729093652281,5.22,155.22,155.13,9.377]
[1729093652586,5.22,155.22,155.16,3.2228]
[1729093652896,3.2223,155.19,155.16,3.2228]
[1729093653095,5.22,155.22,155.13,9.377]
[1729093653295,5.22,155.22,155.17,3.2226]
[1729093653594,3.2222,155.2,155.17,6.40640636]
[1729093655693,3.2224,155.19,155.17,3.18380636]
[1729093655887,3.2224,155.19,155.16,3.2229]
[1729093656291,19.27,155.23,155.14,19.27]
[1729093656492,3.2225,155.18,155.15,3.2231]
[1729093656997,19.27,155.21,155.14,3.2232]
[1729093657389,3.2227,155.18,155.14,3.2232]
[1729093657589,19.27,155.21,155.14,3.2232]
[1729093657790,19.27,155.21,155.15,3.2231]
[1729093658993,3.2226,155.18,155.15,3.2231]
[1729093659403,19.27,155.23,155.17,3.2227]
[1729093659603,3.2223,155.19,155.17,3.17446023]
[1729093659901,3.2223,155.19,155.16,3.2228]
[1729093663802,3.2228,155.17,155.14,3.2232]
[1729093664005,19.27,155.19,155.13,6.5521]
[1729093664202,19.27,155.17,155.09,3.20033289]
[1729093664508,3.2237,155.13,155.1,5.22]
[1729093664698,3.2237,155.13,155.1,8.4807333]
[1729093665103,3.2233,155.14,155.11,3.2238]
[1729093665402,19.27,155.17,155.11,3.2238]
[1729093665599,19.27,155.15,155.1,8.4807333]
[1729093666410,22.4933,155.15,155.12,3.2237]
[1729093667302,19.27,155.17,155.1,3.2607333]
[1729093667508,3.2231,155.16,155.12,3.2237]
[1729093667710,3.2231,155.16,155.12,6.39212303]
[1729093668016,3.2232,155.15,155.12,6.39212303]
[1729093668414,19.27,155.17,155.12,3.16842303]
[1729093668611,19.27,155.17,155.11,3.2239]
[1729093669211,19.27,155.17,155.11,3.30057496]
[1729093669506,19.27,155.15,155.09,5.22]
[1729093669711,3.2234,155.14,155.09,8.44063916]
[1729093669912,3.2234,155.14,155.11,3.2238]
[1729093670312,19.27,155.15,155.09,8.44063916]
[1729093670513,3.2239,155.12,155.09,11.66483916]
[1729093671615,3.2239,155.12,155.09,6.44483916]
[1729093671915,19.27,155.15,155.09,3.22063916]
[1729093672212,19.27,155.13,155.07,1.3949]
[1729093672412,19.27,155.13,155.05,5.22]
[1729093672601,3.2242,155.11,155.07,3.2247]
[1729093672810,19.27,155.13,155.07,6.3986025]
[1729093673108,3.2244,155.09,155.07,3.1739025]
[1729093673309,5.22,155.14,155.05,4.61]
[1729093673310,19.27,155.11,155.05,4.61]
[1729093673610,19.27,155.11,155.05,1.385]
[1729093673813,3.2247,155.08,155.05,1.385]
[1729093675707,3.2247,155.08,155.05,4.6102]
[1729093676107,3.2239,155.12,155.08,3.2244]
[1729093676311,19.27,155.13,155.08,3.28401631]
[1729093676614,19.27,155.13,155.05,1.385]
[1729093676816,3.2245,155.09,155.05,1.385]
[1729093677018,19.27,155.13,155.05,1.385]
[1729093678214,19.27,155.11,155.05,1.385]
[1729093678421,3.2247,155.08,155.05,4.61]
[1729093680210,19.27,155.11,155.02,19.27]
[1729093680415,3.2249,155.07,155.03,3.2255]
[1729093682209,3.2252,155.05,155.02,3.2258]
[1729093682610,19.27,155.09,155.02,3.2258]
[1729093682914,3.2252,155.05,155.01,5.22]
[1729093683219,19.27,155.09,155.0,4.1696]
[1729093683518,3.2259,155.02,154.99,3.227449]
[1729093683710,3.2259,155.02,154.9,6.4566]
[1729093683711,19.27,155.03,154.95,4.0767]
[1729093684230,5.22,155.05,154.95,3.22948958]
[1729093684522,5.22,155.05,154.93,3.2276]
[1729093684523,3.227,154.97,154.93,3.2276]
[1729093684918,3.227,154.97,154.93,6.47515124]
[1729093685110,3.227,154.97,154.93,3.2276]
[1729093685414,3.2272,154.96,154.92,8.4479]
[1729093685615,3.2272,154.96,154.92,11.63965361]
[1729093685817,19.27,154.99,154.92,3.19175361]
[1729093686020,3.2273,154.95,154.91,3.2281]
[1729093686221,19.27,154.97,154.9,12.52070462]
[1729093686416,3.2276,154.94,154.9,11.15090462]
[1729093686722,24.49,154.97,154.9,9.83290462]
[1729093687217,5.22,154.97,154.9,9.83290462]
[1729093687819,5.22,154.97,154.93,3.2277]
[1729093688008,24.49,154.97,154.9,3.19190462]
[1729093688212,24.49,154.97,154.87,5.22]
[1729093688421,3.2273,154.95,154.9,3.2283]
[1729093688745,24.49,154.97,154.9,3.19158195]
[1729093688920,24.49,154.97,154.88,5.22]
[1729093689413,3.2274,154.95,154.9,3.2283]
[1729093689614,19.27,154.95,154.9,6.49203562]
[1729093689814,19.27,154.95,154.9,3.2283]
[1729093690317,19.27,154.95,154.9,6.4820301]
[1729093690623,3.2275,154.94,154.9,6.4820301]
[1729093691019,24.49,154.97,154.9,3.2537301]
[1729093691221,24.49,154.97,154.93,3.2276]
[1729093691222,8.4469,154.97,154.93,3.2276]
[1729093691616,3.2274,154.95,154.91,3.228]
[1729093692515,3.2274,154.95,154.89,22.48209423]
[1729093692516,24.49,154.97,154.89,22.48209423]
[1729093692815,5.22,155.0,154.91,19.27]
[1729093693021,19.27,155.01,154.92,1.3855]
[1729093693218,3.2263,155.0,154.96,3.227]
[1729093693419,19.27,155.01,154.93,25.8542]
[1729093693615,19.27,155.03,154.95,19.27]
[1729093693818,5.22,155.05,154.97,19.27]
[1729093694022,5.22,155.05,154.97,24.49]
[1729093694425,8.4453,155.05,155.01,3.226]
[1729093694721,8.4453,155.05,155.01,6.43002526]
[1729093694920,3.2251,155.06,155.03,3.2256]
[1729093695110,3.2251,155.06,155.01,3.20402526]
[1729093695310,1.3495,155.09,154.99,19.27]
[1729093695311,20.6195,155.09,154.99,19.27]
[1729093695515,23.844,155.09,155.05,3.2251]
[1729093695819,20.6195,155.09,155.0,2.7171]
[1729093696023,3.2252,155.06,155.02,3.2258]
[1729093696326,20.6195,155.09,155.02,3.28701651]
[1729093696513,20.6195,155.09,155.01,5.22]
[1729093696715,19.27,155.07,155.01,8.47766526]
[1729093697212,3.2252,155.06,155.02,3.2258]
[1729093697920,3.2252,155.05,155.01,11.70366526]
[1729093698312,19.27,155.07,155.01,3.25766526]
[1729093698519,3.2256,155.03,155.0,1.3711]
[1729093698719,19.27,155.07,155.0,1.3711]
[1729093699121,19.27,155.07,155.0,4.52522957]
[1729093699429,19.27,155.07,155.0,7.75142957]
[1729093699851,19.27,155.05,155.0,4.52522957]
[1729093700129,3.2255,155.04,155.0,7.75142957]
[1729093701529,3.225,155.06,155.03,3.2255]
[1729093701728,3.225,155.06,155.0,4.52522957]
[1729093702427,24.49,155.08,155.0,4.52522957]
[1729093702629,3.2253,155.05,155.0,4.52522957]
[1729093703024,3.226,155.01,155.0,4.52522957]
[1729093703330,19.27,155.04,155.0,3.15412957]
[1729093703532,19.27,155.04,154.97,5.22]
[1729093703726,3.2259,155.02,154.98,3.2265]
[1729093704034,19.27,155.02,154.95,1.4252]
[1729093704232,3.2263,155.0,154.96,3.227]
[1729093704526,19.27,155.02,154.95,6.6452]
[1729093704727,3.2263,155.0,154.97,3.2268]
[1729093705029,3.2263,155.0,154.95,6.6452]
[1729093705426,3.2263,155.0,154.96,3.227]
[1729093705823,3.2267,154.98,154.95,3.2272]
[1729093706225,19.27,155.0,154.95,3.2272]
[1729093706430,3.2265,154.99,154.95,3.2272]
[1729093706632,3.2265,154.99,154.94,5.22]
[1729093706825,3.2265,154.99,154.96,3.227]
[1729093708140,3.2261,155.01,154.97,3.2267]
[1729093708336,7.6474,155.05,154.94,19.27]
[1729093708535,25.8804,155.05,154.94,19.27]
[1729093708735,25.8804,155.05,154.95,1.4364]
[1729093708736,3.2258,155.03,154.95,1.4364]
[1729093709537,3.2258,155.03,154.99,3.2263]
[1729093709739,3.2258,155.03,154.99,6.43081396]
[1729093709940,25.8804,155.05,154.99,6.43081396]
[1729093710139,3.2258,155.02,154.99,6.43081396]
[1729093710839,3.2253,155.05,155.01,3.2259]
[1729093711037,19.27,155.07,154.97,5.22]
[1729093712141,3.2254,155.04,155.0,3.2261]
[1729093712333,3.2254,155.04,155.0,3.25624456]
[1729093712530,19.27,155.07,154.97,5.22]
[1729093712837,19.27,155.07,155.04,3.2254]
[1729093712838,3.225,155.07,155.04,3.2254]
[1729093713038,19.27,155.07,155.04,3.26656751]
[1729093713243,3.2252,155.06,155.03,3.2255]
[1729093713448,3.2252,155.06,155.03,6.4881964]
[1729093713643,3.2252,155.06,155.03,3.2255]
[1729093714149,19.27,155.07,155.01,5.22]
[1729093714354,19.27,155.07,155.01,3.17011247]
[1729093714549,3.2256,155.04,155.0,3.226]
[1729093714751,3.2256,155.04,155.0,6.50063231]
[1729093714949,19.27,155.07,155.0,6.50063231]
[1729093715148,3.2258,155.03,155.0,6.50083231]
[1729093716454,3.2259,155.02,155.0,3.27463231]
[1729093716652,19.27,155.05,154.98,5.22]
[1729093716953,5.22,155.09,154.98,5.22]
[1729093717149,3.2256,155.04,155.0,3.2261]
[1729093717355,3.2256,155.04,155.0,3.19087511]
[1729093717653,3.2256,155.04,155.01,3.2259]
[1729093717856,3.2256,155.04,155.01,6.3787117]
[1729093718354,19.27,155.07,155.03,3.2256]
[1729093718654,19.27,155.07,154.98,6.6188]
[1729093718850,3.2253,155.05,155.02,3.2257]
[1729093719050,3.2253,155.05,155.03,3.26366789]
[1729093719257,1.4306,155.12,154.98,25.8888]
[1729093719558,3.225,155.07,155.04,3.2253]
[1729093719753,19.27,155.09,155.03,3.21075749]
[1729093719959,5.22,155.11,155.03,19.27]
[1729093720156,24.49,155.13,155.05,19.27]
[1729093720452,3.224,155.11,155.08,3.2245]
[1729093720649,5.22,155.15,155.06,5.22]
[1729093720849,24.49,155.15,155.07,19.27]
[1729093721857,3.2238,155.12,155.09,3.2243]
[1729093722249,24.49,155.15,155.06,5.22]
[1729093722250,19.27,155.14,155.06,5.22]
[1729093722655,3.2241,155.11,155.08,3.2244]
[1729093723049,3.2238,155.12,155.08,3.2244]
[1729093723253,3.2238,155.12,155.06,5.22]
[1729093724954,19.27,155.14,155.06,24.49]
[1729093725359,19.27,155.14,155.09,3.2243]
[1729093725666,19.27,155.12,155.05,6.5973]
[1729093725956,19.27,155.06,154.94,5.22]
[1729093726161,19.27,155.04,154.95,1.3446]
[1729093726360,19.27,155.04,154.98,3.2265]
[1729093726860,19.27,155.04,154.95,4.55876859]
[1729093727160,3.2257,155.03,154.99,3.2264]
[1729093727364,5.22,155.06,154.96,19.27]
[1729093727564,24.49,155.06,154.96,19.27]
[1729093728459,3.2256,155.04,154.99,3.2264]
[1729093729661,3.2257,155.03,154.99,3.2264]
[1729093734663,3.2257,155.03,155.0,3.2262]
[1729093735951,3.2257,155.03,154.99,4.6567]
[1729093736664,3.2258,155.02,154.99,4.6567]
[1729093739068,19.27,155.04,154.99,4.6567]
[1729093739268,3.2257,155.03,154.99,4.6567]
[1729093740063,19.27,155.04,154.99,1.4303]
[1729093740965,3.2259,155.02,154.99,1.4303]
[1729093741162,19.27,155.02,154.95,7.78596859]
[1729093741357,19.27,155.02,154.95,13.16596859]
[1729093741557,19.27,155.0,154.95,3.21416859]
[1729093741757,19.27,154.98,154.93,1.3483]
[1729093741959,3.2267,154.98,154.93,1.3483]
[1729093742159,24.65,155.02,154.95,3.2272]
[1729093742367,24.65,155.02,154.93,4.6504561]
[1729093742561,3.2268,154.98,154.93,4.6504561]
[1729093743066,3.2268,154.98,154.94,3.2273]
[1729093743272,24.65,155.02,154.93,4.6504561]
[1729093743568,19.27,155.09,155.0,19.27]
[1729093743872,3.2252,155.06,155.0,19.27]
[1729093744075,5.38,155.09,155.04,3.2254]
[1729093744372,5.38,155.09,155.04,6.39140467]
[1729093744373,3.2247,155.08,155.04,6.39140467]
[1729093744671,19.27,155.11,155.04,3.16600467]
[1729093744865,3.2245,155.09,155.02,19.27]
[1729093745265,3.2245,155.09,155.05,3.225]